bitfinex/quotes_BTCUSD_20230120
["timestamp","ask_amount","ask_price","bid_price","bid_amount"]
[1674199253370,0.00385503,20917.0,20916.0,2.06558378]
[1674199253643,0.00385503,20917.0,20916.0,2.41872133]
[1674199253912,0.00385503,20917.0,20916.0,1.95116027]
[1674199254189,0.00385503,20917.0,20916.0,1.98475315]
[1674199256073,0.00385503,20917.0,20916.0,1.95116027]
[1674199256882,0.00385503,20917.0,20916.0,2.06558378]
[1674199257137,0.00385503,20917.0,20916.0,2.52124735]
[1674199257637,0.00385503,20917.0,20916.0,2.54940602]
[1674199257907,0.00385503,20917.0,20916.0,2.52124735]
[1674199258401,0.00385503,20917.0,20916.0,2.43498595]
[1674199258674,0.00385503,20917.0,20916.0,2.54942153]
[1674199258936,0.00385503,20917.0,20916.0,2.54939303]
[1674199259196,0.00385503,20917.0,20916.0,2.78841303]
[1674199260253,0.00385503,20917.0,20916.0,2.76025092]
[1674199260513,0.00385503,20917.0,20916.0,2.78840333]
[1674199260809,0.00385503,20917.0,20916.0,2.90277703]
[1674199261071,0.00385503,20917.0,20916.0,2.73129584]
[1674199261620,0.00385503,20917.0,20916.0,2.9028988]
[1674199261901,0.00385503,20917.0,20916.0,3.01726611]
[1674199262178,0.00385503,20917.0,20916.0,2.90282356]
[1674199262443,0.00385503,20917.0,20916.0,2.78839905]
[1674199262976,0.00385503,20917.0,20916.0,2.75184495]
[1674199263250,0.00385503,20917.0,20916.0,2.98062356]
[1674199264399,0.00385503,20917.0,20916.0,2.75184495]
[1674199265164,0.00385503,20917.0,20916.0,2.98062356]
[1674199265953,0.00385503,20917.0,20916.0,2.75184495]
[1674199266252,0.00385503,20917.0,20916.0,2.98062356]
[1674199266508,0.00385503,20917.0,20916.0,2.74062356]
[1674199267582,0.00385503,20917.0,20916.0,3.40721153]
[1674199267841,0.00385503,20917.0,20916.0,3.17843292]
[1674199268099,0.00375103,20917.0,20916.0,3.17843292]
[1674199268398,0.00375103,20917.0,20916.0,3.40690951]
[1674199268656,0.00375103,20917.0,20916.0,3.12093924]
[1674199268944,0.00375103,20917.0,20916.0,3.19656265]
[1674199269227,0.00375103,20917.0,20916.0,3.63804152]
[1674199269495,0.00441648,20920.0,20916.0,4.11614352]
[1674199269762,0.00441648,20920.0,20919.0,1.05798454]
[1674199270022,0.00441648,20920.0,20919.0,3.64455061]
[1674199270291,0.00441648,20920.0,20919.0,3.75871035]
[1674199270556,0.00441648,20920.0,20919.0,3.79471035]
[1674199271112,0.00441648,20920.0,20919.0,3.68055061]
[1674199271375,0.00441648,20920.0,20919.0,3.79470937]
[1674199271905,0.00441648,20920.0,20919.0,3.92055061]
[1674199271907,0.00441648,20920.0,20919.0,4.03470943]
[1674199272429,0.00441648,20920.0,20919.0,3.57919082]
[1674199272705,0.00441648,20920.0,20919.0,4.01561212]
[1674199272975,0.00441648,20920.0,20919.0,4.32964362]
[1674199273228,0.00441648,20920.0,20919.0,4.4437495]
[1674199273487,4.8e-07,20920.0,20919.0,4.4437495]
[1674199273757,0.00334686,20925.0,20919.0,5.03612593]
[1674199274013,0.00334686,20925.0,20924.0,0.23895]
[1674199274273,0.00334686,20925.0,20924.0,1.989524]
[1674199275076,0.00334686,20925.0,20924.0,2.025524]
[1674199275874,0.00334686,20925.0,20924.0,2.67956951]
[1674199276135,0.00334686,20925.0,20924.0,1.90164951]
[1674199276402,0.00334686,20925.0,20924.0,2.20164951]
[1674199276952,0.00334686,20925.0,20924.0,1.90164951]
[1674199278312,0.00334686,20925.0,20924.0,2.20164951]
[1674199278842,0.00334686,20925.0,20924.0,1.925404]
[1674199279136,0.00334686,20925.0,20924.0,2.35383628]
[1674199279432,0.00334686,20925.0,20924.0,2.46563373]
[1674199279702,0.00334686,20925.0,20924.0,2.70455373]
[1674199279959,0.00334686,20925.0,20924.0,2.35380628]
[1674199281051,0.00334686,20925.0,20924.0,3.32750628]
[1674199284046,0.00334686,20925.0,20924.0,3.66530002]
[1674199284315,0.00334686,20925.0,20924.0,1.64644774]
[1674199287639,0.00334686,20925.0,20924.0,1.94644774]
[1674199289716,0.00334686,20925.0,20924.0,1.99853156]
[1674199292009,0.00334686,20925.0,20924.0,1.608654]
[1674199292560,0.00334686,20925.0,20924.0,2.54018628]
[1674199293045,0.00334686,20925.0,20924.0,2.61718628]
[1674199293320,0.00334686,20925.0,20924.0,2.55468628]
[1674199294317,0.00334686,20925.0,20924.0,2.92299673]
[1674199294598,0.00334686,20925.0,20924.0,2.82188574]
[1674199294872,0.00334686,20925.0,20924.0,2.93597935]
[1674199295610,0.00244388,20927.0,20925.0,0.6031]
[1674199295869,0.00244388,20927.0,20926.0,3.38153668]
[1674199296137,0.00244388,20927.0,20926.0,3.68153668]
[1674199296634,0.00244388,20927.0,20926.0,3.71753668]
[1674199297774,0.00244388,20927.0,20926.0,3.36337993]
[1674199299260,0.00244388,20927.0,20926.0,3.66337993]
[1674199299517,0.00244388,20927.0,20926.0,3.625587]
[1674199299772,0.00244388,20927.0,20926.0,3.290533]
[1674199300310,0.00244388,20927.0,20926.0,3.68403965]
[1674199300567,0.00244388,20927.0,20926.0,3.368333]
[1674199300828,0.00244388,20927.0,20926.0,4.46309049]
[1674199301112,8.8e-07,20927.0,20926.0,4.23464218]
[1674199301349,0.00244388,20929.0,20926.0,4.29175426]
[1674199301637,0.00244388,20929.0,20928.0,0.5801]
[1674199301874,0.00244388,20929.0,20928.0,3.64612966]
[1674199302168,0.00244388,20929.0,20928.0,3.904716]
[1674199302450,0.00244388,20929.0,20928.0,3.98972842]
[1674199302709,0.00244388,20929.0,20928.0,4.19694589]
[1674199303429,0.00244388,20929.0,20928.0,4.02572842]
[1674199303680,0.00244388,20929.0,20928.0,3.65368468]
[1674199304997,0.00244388,20929.0,20928.0,3.89368468]
[1674199306536,0.00244388,20929.0,20928.0,4.28546875]
[1674199306840,0.00244388,20929.0,20928.0,3.89368468]
[1674199307071,0.00244388,20929.0,20928.0,4.28550793]
[1674199307329,0.00244388,20929.0,20928.0,3.59413032]
[1674199307894,0.00585096,20934.0,20928.0,3.98542803]
[1674199308186,0.00585096,20934.0,20932.0,0.23886]
[1674199308448,0.00585096,20934.0,20933.0,1.773851]
[1674199308714,0.00585096,20934.0,20933.0,1.747227]
[1674199309231,0.00585096,20934.0,20933.0,1.433142]
[1674199309232,0.00585096,20934.0,20933.0,1.469142]
[1674199311350,0.00585096,20934.0,20933.0,0.991428]
[1674199311606,0.44747163,20934.0,20933.0,0.991428]
[1674199312152,0.00585096,20934.0,20933.0,0.991428]
[1674199312955,0.00585096,20934.0,20933.0,1.878916]
[1674199313216,0.00585096,20934.0,20933.0,1.813122]
[1674199313506,0.00585096,20934.0,20933.0,1.703434]
[1674199314309,0.00585096,20934.0,20933.0,2.13043768]
[1674199314852,0.00585096,20934.0,20933.0,2.51042173]
[1674199315126,0.00585096,20934.0,20933.0,2.32341805]
[1674199315667,0.00585096,20934.0,20933.0,2.02341805]
[1674199316984,0.00585096,20934.0,20933.0,2.08028479]
[1674199317239,0.00585096,20934.0,20933.0,2.38028479]
[1674199317539,0.00585096,20934.0,20933.0,1.943434]
[1674199318585,0.00585096,20934.0,20933.0,2.37043768]
[1674199319053,0.00585096,20934.0,20933.0,2.87353768]
[1674199319320,0.00585096,20934.0,20933.0,2.88203768]
[1674199322779,0.00585096,20934.0,20933.0,3.24847266]
[1674199323012,0.00585096,20934.0,20933.0,3.41959435]
[1674199323273,0.00585096,20934.0,20933.0,3.30554515]
[1674199323557,0.00585096,20934.0,20933.0,3.2480903]
[1674199323799,0.00585096,20934.0,20933.0,3.07388688]
[1674199324134,0.00585096,20934.0,20933.0,3.24805412]
[1674199324322,0.00585096,20934.0,20933.0,3.07388688]
[1674199325131,0.00585096,20934.0,20933.0,3.26768703]
[1674199325397,0.00585096,20934.0,20933.0,3.4389045]
[1674199325658,0.00585096,20934.0,20933.0,3.61700361]
[1674199325931,0.00585096,20934.0,20933.0,3.50249122]
[1674199326206,0.00585096,20934.0,20933.0,3.33127375]
[1674199326464,0.00585096,20934.0,20933.0,3.50249122]
[1674199326771,0.0075742,20936.0,20933.0,3.33127375]
[1674199327029,0.0075742,20936.0,20935.0,0.5803]
[1674199327337,0.0075742,20936.0,20935.0,3.30125468]
[1674199327901,0.0075742,20936.0,20935.0,2.874251]
[1674199328152,0.0075742,20936.0,20935.0,2.910251]
[1674199328416,0.0075742,20936.0,20935.0,3.33725468]
[1674199329485,0.0075742,20936.0,20935.0,2.910251]
[1674199329740,0.0075742,20936.0,20935.0,3.33725468]
[1674199330582,0.0074342,20936.0,20935.0,3.40808609]
[1674199330795,0.0074342,20936.0,20935.0,3.02922295]
[1674199331056,0.20175517,20936.0,20935.0,2.533051]
[1674199331331,0.20175517,20936.0,20935.0,2.29454677]
[1674199331580,0.0074342,20936.0,20935.0,1.46928977]
[1674199332087,0.0074342,20936.0,20935.0,1.80160599]
[1674199332344,0.0074342,20936.0,20935.0,2.13595499]
[1674199333142,0.0074342,20936.0,20935.0,2.43595499]
[1674199333940,0.0074342,20936.0,20935.0,2.10363877]
[1674199335244,0.0074342,20936.0,20935.0,2.54612317]
[1674199338699,0.0074342,20936.0,20935.0,2.27379117]
[1674199340309,0.0074342,20936.0,20935.0,1.97379117]
[1674199340584,0.46107485,20936.0,20935.0,1.196672]
[1674199340840,0.78125285,20936.0,20935.0,1.196672]
[1674199341102,0.78221185,20936.0,20935.0,1.196672]
[1674199341381,0.46107485,20936.0,20935.0,1.196672]
[1674199341640,0.78890985,20936.0,20935.0,0.719004]
[1674199341910,0.78890985,20936.0,20935.0,0.241336]
[1674199342508,0.3352692,20936.0,20935.0,0.241336]
[1674199342510,0.0074342,20936.0,20935.0,0.719004]
[1674199342757,0.0074342,20936.0,20935.0,1.15929288]
[1674199343001,0.0074342,20936.0,20935.0,1.48538388]
[1674199343293,0.0074342,20936.0,20935.0,1.46725088]
[1674199343532,0.0074342,20936.0,20935.0,1.15929288]
[1674199344857,0.0074342,20936.0,20935.0,0.819004]
[1674199345130,0.0074342,20936.0,20935.0,1.86550444]
[1674199345381,0.0074342,20936.0,20935.0,2.38910142]
[1674199345877,0.0074342,20936.0,20935.0,2.39760142]
[1674199346125,0.0074342,20936.0,20935.0,2.42570666]
[1674199346382,0.0074342,20936.0,20935.0,2.25026987]
[1674199346639,0.0074342,20936.0,20935.0,1.97569036]
[1674199347157,0.0074342,20936.0,20935.0,2.08962628]
[1674199347384,0.0074342,20936.0,20935.0,2.25016261]
[1674199347645,0.0074342,20936.0,20935.0,1.79606425]
[1674199348389,0.0074342,20936.0,20935.0,2.54011884]
[1674199348856,0.0074342,20936.0,20935.0,2.1099064]
[1674199349110,0.0074342,20936.0,20935.0,2.54011884]
[1674199349616,0.0074342,20936.0,20935.0,2.36890137]
[1674199350116,0.0074342,20936.0,20935.0,3.15756175]
[1674199350432,0.00669079,20936.0,20935.0,2.72115306]
[1674199350678,0.00669079,20936.0,20935.0,2.64355306]
[1674199352381,0.00669079,20936.0,20935.0,2.76406147]
[1674199352632,0.00669079,20936.0,20935.0,3.10698655]
[1674199352891,0.00669079,20936.0,20935.0,2.76406115]
[1674199353389,0.00669079,20936.0,20935.0,2.64355306]
[1674199353620,0.00669079,20936.0,20935.0,2.76406208]
[1674199353857,0.00669079,20936.0,20935.0,2.64355306]
[1674199354110,0.00669079,20936.0,20935.0,2.21334062]
[1674199354586,0.00669079,20936.0,20935.0,2.49904551]
[1674199354850,0.00669079,20936.0,20935.0,2.21334062]
[1674199355097,0.00669079,20936.0,20935.0,2.49904568]
[1674199356129,0.00669079,20936.0,20935.0,2.21334062]
[1674199356372,0.00669079,20936.0,20935.0,2.91312722]
[1674199356622,0.00669079,20936.0,20935.0,2.62735256]
[1674199357122,0.00669079,20936.0,20935.0,2.97027764]
[1674199357369,0.00669079,20936.0,20935.0,3.090828]
[1674199357615,7.9e-07,20936.0,20935.0,3.090828]
[1674199357898,7.9e-07,20936.0,20935.0,3.44358928]
[1674199358146,7.9e-07,20936.0,20935.0,2.5662008]
[1674199358394,7.9e-07,20936.0,20935.0,2.4741436]
[1674199358874,7.9e-07,20936.0,20935.0,2.60330252]
[1674199359119,7.9e-07,20936.0,20935.0,2.71725599]
[1674199359367,7.9e-07,20936.0,20935.0,3.06008217]
[1674199359621,7.9e-07,20936.0,20935.0,3.36008217]
[1674199359917,7.9e-07,20936.0,20935.0,2.55044234]
[1674199360154,7.9e-07,20936.0,20935.0,2.54969625]
[1674199360398,7.9e-07,20936.0,20935.0,2.8863359]
[1674199361888,0.00819647,20938.0,20936.0,5.921e-05]
[1674199362165,0.00819647,20938.0,20937.0,2.79135122]
[1674199362413,0.00819647,20938.0,20937.0,3.34697486]
[1674199362896,0.00819647,20938.0,20937.0,3.46047486]
[1674199363626,0.00819647,20938.0,20937.0,3.53827486]
[1674199363866,0.00819647,20938.0,20937.0,3.98605413]
[1674199364098,0.01,20939.0,20938.0,0.6031]
[1674199364330,0.01,20939.0,20938.0,2.80536935]
[1674199364579,0.01,20939.0,20938.0,3.33766935]
[1674199364841,0.01,20939.0,20938.0,3.37366935]
[1674199365088,0.01,20939.0,20938.0,3.85743562]
[1674199365394,0.00368122,20943.0,20938.0,3.85743562]
[1674199365395,0.00368122,20943.0,20940.0,0.5031]
[1674199365632,0.00368122,20943.0,20942.0,0.35293146]
[1674199365876,0.00368122,20943.0,20942.0,1.834771]
[1674199366381,0.00368122,20943.0,20942.0,1.870771]
[1674199367620,0.00368122,20943.0,20942.0,2.31620537]
[1674199367864,0.00368122,20943.0,20942.0,1.870771]
[1674199368349,0.00368122,20943.0,20942.0,2.27167583]
[1674199368830,0.00368122,20943.0,20942.0,1.97167583]
[1674199369635,0.00368122,20943.0,20942.0,2.12031128]
[1674199369904,0.00368122,20943.0,20942.0,2.03198772]
[1674199370093,0.00368122,20943.0,20942.0,2.08499246]
[1674199370367,0.00368122,20943.0,20942.0,2.68018109]
[1674199370615,0.00368122,20943.0,20942.0,2.50962084]
[1674199371092,0.00351092,20943.0,20942.0,2.50962084]
[1674199371333,0.00351092,20943.0,20942.0,2.16265246]
[1674199371565,0.00351092,20943.0,20942.0,3.02102735]
[1674199372287,0.00351092,20943.0,20942.0,3.35031922]
[1674199372544,9.2e-07,20943.0,20942.0,3.69938523]
[1674199372847,9.2e-07,20943.0,20942.0,3.69922165]
[1674199373034,9.2e-07,20943.0,20942.0,3.69922093]
[1674199373274,9.2e-07,20943.0,20942.0,3.46454068]
[1674199373526,9.2e-07,20943.0,20942.0,3.76932443]
[1674199373777,9.2e-07,20943.0,20942.0,3.88282652]
[1674199374011,9.2e-07,20943.0,20942.0,3.7687242]
[1674199374260,9.2e-07,20943.0,20942.0,3.7687243]
[1674199374499,9.2e-07,20943.0,20942.0,3.88282652]
[1674199374739,9.2e-07,20943.0,20942.0,3.65472406]
[1674199374990,9.2e-07,20943.0,20942.0,3.88281007]
[1674199375236,9.2e-07,20943.0,20942.0,2.66132866]
[1674199375237,0.19432189,20943.0,20942.0,2.66132866]
[1674199375536,9.2e-07,20943.0,20942.0,2.12724421]
[1674199376057,9.2e-07,20943.0,20942.0,2.02728421]
[1674199376295,9.2e-07,20943.0,20942.0,1.027018]
[1674199378976,9.2e-07,20943.0,20942.0,1.265768]
[1674199380628,9.2e-07,20943.0,20942.0,1.565768]
[1674199380905,9.2e-07,20943.0,20942.0,1.265768]
[1674199381928,9.2e-07,20943.0,20942.0,1.027018]
[1674199382454,0.34417692,20943.0,20942.0,1.027018]
[1674199382715,0.49977692,20943.0,20942.0,1.027018]
[1674199383225,0.49977692,20943.0,20942.0,0.549509]
[1674199383726,0.95421631,20943.0,20942.0,0.549509]
[1674199383993,0.79861631,20943.0,20942.0,1.027018]
[1674199384263,0.45444031,20943.0,20942.0,1.027018]
[1674199384493,9.2e-07,20943.0,20942.0,1.027018]
[1674199384759,9.2e-07,20943.0,20942.0,1.37682802]
[1674199385050,9.2e-07,20943.0,20942.0,1.69605202]
[1674199385642,9.2e-07,20943.0,20942.0,1.99283302]
[1674199386661,9.2e-07,20943.0,20942.0,2.45281286]
[1674199387161,9.2e-07,20943.0,20942.0,2.10683417]
[1674199387696,9.2e-07,20943.0,20942.0,1.643023]
[1674199387962,9.2e-07,20943.0,20942.0,1.75702415]
[1674199388712,9.2e-07,20943.0,20942.0,2.18096305]
[1674199389257,9.2e-07,20943.0,20942.0,2.0670625]
[1674199389517,9.2e-07,20943.0,20942.0,2.06705164]
[1674199390012,9.2e-07,20943.0,20942.0,2.06705915]
[1674199390530,9.2e-07,20943.0,20942.0,2.06707708]
[1674199391048,9.2e-07,20943.0,20942.0,1.95285724]
[1674199391309,9.2e-07,20943.0,20942.0,2.19157724]
[1674199391576,9.2e-07,20943.0,20942.0,2.30579736]
[1674199391852,9.2e-07,20943.0,20942.0,2.83212451]
[1674199392065,9.2e-07,20943.0,20942.0,2.42001415]
[1674199392354,9.2e-07,20943.0,20942.0,2.24868123]
[1674199392602,9.2e-07,20943.0,20942.0,2.9473112]
[1674199392817,9.2e-07,20943.0,20942.0,2.94731125]
[1674199395390,9.2e-07,20943.0,20942.0,3.66792953]
[1674199395641,9.2e-07,20943.0,20942.0,3.38237588]
[1674199395895,9.2e-07,20943.0,20942.0,3.66788589]
[1674199396159,9.2e-07,20943.0,20942.0,3.38237588]
[1674199396381,0.00463031,20945.0,20943.0,5.98e-05]
[1674199396647,0.00463031,20945.0,20944.0,2.5373524]
[1674199396931,0.00463031,20945.0,20944.0,2.97618817]
[1674199397185,0.00463031,20945.0,20944.0,3.09042273]
[1674199397427,0.00463031,20945.0,20944.0,3.04818719]
[1674199397688,0.00463031,20945.0,20944.0,2.93395361]
[1674199397945,0.00463031,20945.0,20944.0,3.04818805]
[1674199398229,0.00463031,20945.0,20944.0,3.01516015]
[1674199398478,0.00463031,20945.0,20944.0,3.04457169]
[1674199398744,0.00463031,20945.0,20944.0,3.04456728]
[1674199398996,0.00463031,20945.0,20944.0,3.04456891]
[1674199399509,0.00463031,20945.0,20944.0,3.48890836]
[1674199399780,0.00463031,20945.0,20944.0,3.18233548]
[1674199400286,0.00463031,20945.0,20944.0,2.88233548]
[1674199400545,0.40026794,20945.0,20944.0,1.981852]
[1674199400825,0.40026794,20945.0,20944.0,1.981912]
[1674199401139,0.00463031,20945.0,20944.0,1.981912]
[1674199401325,0.00463031,20945.0,20944.0,2.320296]
[1674199401583,0.00443353,20945.0,20944.0,3.13508447]
[1674199401816,0.00443353,20945.0,20944.0,3.02085444]
[1674199402342,0.00443353,20945.0,20944.0,2.44351444]
[1674199404075,0.00443353,20945.0,20944.0,3.17471147]
[1674199404336,0.00443353,20945.0,20944.0,3.29862608]
[1674199404880,0.00443353,20945.0,20944.0,3.18705247]
[1674199405391,0.00443353,20945.0,20944.0,2.88705247]
[1674199405644,0.00443353,20945.0,20944.0,2.77282244]
[1674199405918,0.00443353,20945.0,20944.0,2.88699247]
[1674199406662,0.00443353,20945.0,20944.0,3.18699247]
[1674199407182,0.00443353,20945.0,20944.0,3.47505203]
[1674199407488,0.00443353,20945.0,20944.0,3.50317622]
[1674199407994,0.00443353,20945.0,20944.0,3.61741531]
[1674199408524,0.00443353,20945.0,20944.0,3.50322338]
[1674199408798,0.00443353,20945.0,20944.0,3.47509996]
[1674199409305,0.00443353,20945.0,20944.0,3.50322319]
[1674199410607,0.00443353,20945.0,20944.0,3.61741435]
[1674199411140,0.00443353,20945.0,20944.0,3.44606251]
[1674199411630,0.00443353,20945.0,20944.0,3.61746858]
[1674199411853,0.00443353,20945.0,20944.0,2.98446007]
[1674199412082,0.00443353,20945.0,20944.0,3.27004647]
[1674199412587,0.00443353,20945.0,20944.0,3.15584502]
[1674199413066,0.00443353,20945.0,20944.0,3.39453502]
[1674199413589,0.00443353,20945.0,20944.0,3.77069942]
[1674199413843,0.00443353,20945.0,20944.0,3.39453502]
[1674199414077,0.00443353,20945.0,20944.0,3.22315007]
[1674199414362,0.00443353,20945.0,20944.0,3.28026735]
[1674199414613,0.00443353,20945.0,20944.0,3.50877401]
[1674199414872,0.00443353,20945.0,20944.0,3.92997839]
[1674199415128,0.00443353,20945.0,20944.0,3.50877401]
[1674199415385,0.00443353,20945.0,20944.0,3.84222745]
[1674199416160,0.00443353,20945.0,20944.0,3.90335111]
[1674199416370,0.00443353,20945.0,20944.0,3.37484445]
[1674199416620,0.00443353,20945.0,20944.0,3.13617989]
[1674199416870,0.00443353,20945.0,20944.0,2.7057371]
[1674199417117,0.00443353,20945.0,20944.0,2.3764291]
[1674199417377,0.00443353,20945.0,20944.0,2.49067384]
[1674199417897,0.00443353,20945.0,20944.0,2.81277084]
[1674199418151,0.00443353,20945.0,20944.0,2.80487184]
[1674199418668,0.00443353,20945.0,20944.0,2.3764291]
[1674199418976,0.00443353,20945.0,20944.0,1.981852]
[1674199418977,0.14658353,20945.0,20944.0,1.981852]
[1674199419178,0.88113294,20945.0,20944.0,1.981852]
[1674199420491,0.88113294,20945.0,20944.0,1.9817697]
[1674199420752,0.88113294,20945.0,20944.0,1.5043067]
[1674199420753,0.56408194,20945.0,20944.0,1.5043067]
[1674199421008,0.88712941,20945.0,20944.0,1.5043067]
[1674199422257,0.88712941,20945.0,20944.0,1.50417632]
[1674199422523,0.74497941,20945.0,20944.0,1.50417632]
[1674199422811,0.51083885,20946.0,20944.0,1.50417632]
[1674199424161,0.39404391,20945.0,20944.0,1.50417632]
[1674199424431,0.79578591,20945.0,20944.0,1.02671332]
[1674199424700,0.47184391,20945.0,20944.0,1.02671332]
[1674199424983,0.401742,20945.0,20944.0,1.02671332]
[1674199425248,0.0771,20946.0,20944.0,1.02671332]
[1674199425556,0.45687673,20946.0,20944.0,1.02671332]
[1674199426372,0.326196,20945.0,20944.0,1.02671332]
[1674199426662,0.45687673,20946.0,20944.0,1.12671332]
[1674199427137,0.45687673,20946.0,20944.0,1.02671332]
[1674199427196,0.45687673,20946.0,20944.0,1.12671332]
[1674199427462,0.45687673,20946.0,20944.0,1.02671332]
[1674199427991,0.45687673,20946.0,20944.0,1.02699897]
[1674199428313,0.45687673,20946.0,20944.0,1.02671332]
[1674199429055,0.34481391,20945.0,20944.0,1.02671332]
[1674199429590,0.67143791,20945.0,20944.0,1.02671332]
[1674199429857,0.66223891,20945.0,20944.0,1.26671332]
[1674199430111,0.34481391,20945.0,20944.0,1.26671332]
[1674199431892,0.67852591,20945.0,20944.0,1.26671332]
[1674199432115,0.34481391,20945.0,20944.0,1.26671332]
[1674199432384,0.65884091,20945.0,20944.0,1.26671332]
[1674199432615,0.34481391,20945.0,20944.0,1.26671332]
[1674199432842,0.65884091,20945.0,20944.0,1.26671332]
[1674199433109,0.42181391,20945.0,20944.0,1.26671332]
[1674199433379,0.391027,20945.0,20944.0,1.26671332]
[1674199433640,0.391027,20945.0,20944.0,1.61266616]
[1674199433641,0.077,20945.0,20944.0,1.61266616]
[1674199436031,0.51505662,20947.0,20944.0,1.61266616]
[1674199437668,0.323221,20946.0,20944.0,1.61266616]
[1674199437931,0.3315195,20946.0,20944.0,1.61266616]
[1674199438189,0.68626375,20945.0,20944.0,1.26671332]
[1674199438487,0.67659175,20945.0,20944.0,1.26671332]
[1674199439261,0.75439175,20945.0,20944.0,1.26671332]
[1674199439522,0.0778,20945.0,20944.0,1.62208187]
[1674199439784,0.0778,20945.0,20944.0,1.14461887]
[1674199440307,0.405147,20945.0,20944.0,1.14461887]
[1674199440544,0.405147,20945.0,20944.0,1.62208187]
[1674199440790,0.405147,20945.0,20944.0,1.26671332]
[1674199441045,0.84621719,20945.0,20944.0,1.26671332]
[1674199441300,0.51887019,20945.0,20944.0,1.26671332]
[1674199441559,0.84316719,20945.0,20944.0,1.26671332]
[1674199441791,0.0778,20945.0,20944.0,1.26671332]
[1674199443036,0.46678772,20946.0,20944.0,1.26671332]
[1674199443289,0.46678772,20946.0,20944.0,0.78925032]
[1674199443539,0.33287342,20945.0,20944.0,0.78925032]
[1674199443791,0.0798,20947.0,20944.0,1.26671332]
[1674199444046,0.52730763,20947.0,20944.0,1.26671332]
[1674199444304,0.52723658,20947.0,20945.0,0.35595274]
[1674199444532,0.52723658,20947.0,20945.0,1.31081274]
[1674199445052,0.52723658,20947.0,20945.0,1.38281274]
[1674199445327,0.07972895,20947.0,20945.0,1.38281274]
[1674199445863,0.07972895,20947.0,20946.0,0.52669004]
[1674199446430,0.07972895,20947.0,20946.0,0.14415]
[1674199446649,0.39035995,20947.0,20946.0,0.14415]
[1674199446953,0.39035995,20947.0,20946.0,0.00106]
[1674199447188,0.39035995,20947.0,20946.0,0.07306]
[1674199447773,0.54467685,20947.0,20946.0,0.07306]
[1674199448560,0.87090285,20947.0,20946.0,0.07306]
[1674199449011,0.54467685,20947.0,20946.0,0.07306]
[1674199449275,0.88779085,20947.0,20946.0,0.07306]
[1674199450093,0.88779085,20947.0,20946.0,0.07312]
[1674199451633,0.54467685,20947.0,20946.0,0.07312]
[1674199452135,0.54467685,20947.0,20946.0,0.550538]
[1674199452136,0.46687685,20947.0,20946.0,0.550538]
[1674199454406,0.78841385,20947.0,20946.0,0.550538]
[1674199455252,0.78841385,20947.0,20946.0,0.07306]
[1674199455525,0.78841385,20947.0,20946.0,1.4116226]
[1674199455526,0.00192895,20947.0,20946.0,1.4116226]
[1674199456039,0.00192895,20947.0,20946.0,1.7148306]
[1674199456785,0.00192895,20947.0,20946.0,1.79894296]
[1674199457044,0.00192895,20947.0,20946.0,2.2965234]
[1674199457323,0.00192895,20947.0,20946.0,2.75466806]
[1674199457892,0.00192895,20947.0,20946.0,2.86890324]
[1674199458348,0.00192895,20947.0,20946.0,2.98341675]
[1674199458609,0.00192895,20947.0,20946.0,2.98286737]
[1674199458863,0.00192895,20947.0,20946.0,2.72607646]
[1674199459120,0.00192895,20947.0,20946.0,2.70969549]
[1674199459377,0.00192895,20947.0,20946.0,2.40969549]
[1674199459632,0.00192895,20947.0,20946.0,1.74471279]
[1674199459903,0.00192895,20947.0,20946.0,1.44150479]
[1674199462797,0.32987495,20947.0,20946.0,1.44150479]
[1674199463082,0.00192895,20947.0,20946.0,1.44150479]
[1674199464920,0.00192895,20947.0,20946.0,1.54150479]
[1674199465180,0.00192895,20947.0,20946.0,1.44150479]
[1674199474065,0.00192895,20947.0,20946.0,1.54150479]
[1674199474323,0.00192895,20947.0,20946.0,1.44150479]
[1674199475435,0.00192895,20947.0,20946.0,1.02767332]
[1674199475696,0.00192895,20947.0,20946.0,1.92574247]
[1674199475952,0.00192895,20947.0,20946.0,2.21710435]
[1674199476224,0.00192895,20947.0,20946.0,2.16014441]
[1674199476483,0.00192895,20947.0,20946.0,2.7626404]
[1674199476993,0.00192895,20947.0,20946.0,2.33155923]
[1674199477217,0.00192895,20947.0,20946.0,2.16014441]
[1674199477487,0.00192895,20947.0,20946.0,2.33155797]
[1674199477981,0.00192895,20947.0,20946.0,2.16864441]
[1674199478500,0.41742819,20952.0,20947.0,0.1]
[1674199478762,0.41742819,20952.0,20950.0,0.23866]
[1674199478763,0.00787623,20952.0,20950.0,0.23866]
[1674199479093,0.00787623,20952.0,20951.0,1.754215]
[1674199479271,0.00787623,20952.0,20951.0,1.431912]
[1674199483377,0.00787623,20952.0,20951.0,1.80249561]
[1674199484654,0.00787623,20952.0,20951.0,1.431912]
[1674199484915,0.51151117,20952.0,20951.0,0.954608]
[1674199485167,0.38231117,20952.0,20951.0,0.954608]
[1674199485426,0.00787623,20952.0,20951.0,0.954608]
[1674199487682,0.00787623,20952.0,20951.0,1.28848156]
[1674199488186,0.00787623,20952.0,20951.0,1.32448156]
[1674199494464,0.00687623,20952.0,20951.0,1.32448156]
[1674199498942,0.00687623,20952.0,20951.0,0.990608]
[1674199499212,0.32398923,20952.0,20951.0,0.990608]
[1674199500542,0.65513281,20952.0,20951.0,0.990608]
[1674199508525,0.32398923,20952.0,20951.0,1.44957757]
[1674199508782,0.00687623,20952.0,20951.0,1.44957757]
[1674199510309,0.00687623,20952.0,20951.0,1.54957757]
[1674199510836,0.00687623,20952.0,20951.0,1.85466924]
[1674199511118,0.00687623,20952.0,20951.0,1.99763179]
[1674199511845,0.00687623,20952.0,20951.0,2.03363179]
[1674199512116,0.00687623,20952.0,20951.0,2.22169375]
[1674199512417,0.00687623,20952.0,20951.0,2.03363179]
[1674199512620,0.00687623,20952.0,20951.0,1.70280979]
[1674199512878,0.00687623,20952.0,20951.0,1.8908139]
[1674199513148,0.00687623,20952.0,20951.0,2.03781779]
[1674199513678,0.00687623,20952.0,20951.0,1.92358305]
[1674199514208,0.00687623,20952.0,20951.0,1.89084604]
[1674199514459,0.00687623,20952.0,20951.0,2.13922265]
[1674199514731,0.00687623,20952.0,20951.0,3.01794292]
[1674199515019,0.00687623,20952.0,20951.0,2.85101288]
[1674199515282,0.00687623,20952.0,20951.0,3.27367089]
[1674199515545,0.00687623,20952.0,20951.0,2.74085652]
[1674199515812,0.00687623,20952.0,20951.0,3.2022535]
[1674199516087,0.00677168,20952.0,20951.0,3.2022535]
[1674199516344,6.8e-07,20952.0,20951.0,3.7053535]
[1674199516599,0.01144015,20954.0,20952.0,0.6031]
[1674199516850,0.01144015,20954.0,20953.0,3.65831052]
[1674199517362,0.01144015,20954.0,20953.0,4.28634247]
[1674199517680,0.01144015,20954.0,20953.0,5.31554301]
[1674199517863,0.01144015,20954.0,20953.0,5.05675216]
[1674199518121,0.01144015,20954.0,20953.0,5.51845002]
[1674199518423,0.01144015,20954.0,20953.0,5.05675216]
[1674199518690,0.01144015,20954.0,20953.0,5.51844664]
[1674199518940,0.01144015,20954.0,20953.0,5.05675216]
[1674199519449,0.01144015,20954.0,20953.0,4.6590139]
[1674199520461,0.01144015,20954.0,20953.0,4.88720916]